bitfinex/quotes_BTCUSD_20240730
["timestamp","ask_amount","ask_price","bid_price","bid_amount"]
[1722367486788,0.17867586,65921.0,65920.0,0.17363304]
[1722367486999,0.17867586,65921.0,65919.0,0.060767]
[1722367487000,0.151699,65920.0,65919.0,0.060767]
[1722367487174,0.48207686,65920.0,65919.0,0.060767]
[1722367487634,0.78547486,65920.0,65919.0,0.060767]
[1722367487847,0.48207686,65920.0,65919.0,0.060767]
[1722367488595,0.46758796,65920.0,65919.0,0.060767]
[1722367489008,0.48218439,65920.0,65919.0,0.060767]
[1722367489440,0.78758239,65920.0,65919.0,0.060767]
[1722367490373,0.80214816,65920.0,65919.0,0.060767]
[1722367490582,0.78755173,65920.0,65919.0,0.060767]
[1722367490936,0.78555173,65920.0,65919.0,0.060767]
[1722367491351,0.78755173,65920.0,65919.0,0.060767]
[1722367491698,0.48415373,65920.0,65919.0,0.060767]
[1722367491896,0.46958796,65920.0,65919.0,0.060767]
[1722367492180,0.4840757,65920.0,65919.0,0.060767]
[1722367492611,0.8502737,65920.0,65919.0,0.060767]
[1722367492808,0.8502737,65920.0,65910.0,0.009383]
[1722367492809,0.758597,65911.0,65910.0,0.009383]
[1722367493013,1.16436186,65911.0,65910.0,0.009383]
[1722367493215,1.5181099,65911.0,65910.0,0.009383]
[1722367495328,1.2146709,65911.0,65910.0,0.009383]
[1722367495527,0.9252319,65911.0,65910.0,0.009383]
[1722367495651,0.19199627,65911.0,65910.0,0.009383]
[1722367495851,0.78487427,65911.0,65910.0,0.009383]
[1722367496301,0.77308474,65911.0,65910.0,0.009383]
[1722367496502,0.77038769,65911.0,65910.0,0.009383]
[1722367496746,0.78492295,65911.0,65910.0,0.009383]
[1722367496931,0.758597,65911.0,65910.0,0.009383]
[1722367497352,0.772597,65911.0,65910.0,0.009383]
[1722367497695,0.758597,65911.0,65910.0,0.009383]
[1722367497896,0.770597,65911.0,65910.0,0.009383]
[1722367498099,0.163719,65911.0,65910.0,0.009383]
[1722367498303,0.467158,65911.0,65910.0,0.009383]
[1722367498503,0.770597,65911.0,65910.0,0.009383]
[1722367500547,1.074036,65911.0,65910.0,0.009383]
[1722367500967,1.39199655,65911.0,65910.0,0.009383]
[1722367501403,1.3919968,65911.0,65910.0,0.009383]
[1722367502539,1.0885578,65911.0,65910.0,0.009383]
[1722367503022,1.074036,65911.0,65910.0,0.009383]
[1722367503286,0.770597,65911.0,65910.0,0.009383]
[1722367503544,0.163719,65911.0,65910.0,0.009383]
[1722367504042,0.467158,65911.0,65910.0,0.009383]
[1722367504282,0.455158,65911.0,65910.0,0.009383]
[1722367504719,0.770597,65911.0,65910.0,0.009383]
[1722367504952,1.07639345,65911.0,65910.0,0.009383]
[1722367505422,0.77595445,65911.0,65910.0,0.009383]
[1722367505671,0.77295445,65911.0,65910.0,0.009383]
[1722367506144,0.77895445,65911.0,65910.0,0.009383]
[1722367507360,0.461158,65911.0,65910.0,0.009383]
[1722367507601,0.0203769,65911.0,65910.0,0.161105]
[1722367507836,0.017,65911.0,65910.0,0.085283]
[1722367508083,1.2798,65920.0,65913.0,0.303427]
[1722367508318,1.583201,65920.0,65915.0,0.151709]
[1722367508580,0.01429333,65919.0,65916.0,0.1532622]
[1722367508845,0.16599433,65919.0,65916.0,0.0015542]
[1722367509107,0.151702,65919.0,65916.0,0.0015542]
[1722367509335,1.2798,65920.0,65916.0,0.0015542]
[1722367509336,0.01428205,65918.0,65916.0,0.0015542]
[1722367509543,1.2798,65920.0,65916.0,0.1532612]
[1722367509757,0.0142843,65919.0,65916.0,0.1532612]
[1722367510212,0.151705,65918.0,65916.0,0.0015542]
[1722367510428,0.151705,65918.0,65915.0,0.0015542]
[1722367510644,0.0142932,65918.0,65915.0,0.1532642]
[1722367510852,0.0142932,65917.0,65915.0,0.0015542]
[1722367511064,0.455124,65916.0,65915.0,0.0015542]
[1722367511279,0.455124,65916.0,65910.0,0.108283]
[1722367511280,0.151717,65912.0,65911.0,0.0015542]
[1722367511563,0.7728782,65912.0,65911.0,0.0015542]
[1722367511794,0.4694442,65912.0,65911.0,0.0015542]
[1722367512008,1.0763122,65912.0,65911.0,0.0015542]
[1722367512222,1.24177749,65912.0,65911.0,0.0015542]
[1722367512431,2.18646255,65912.0,65911.0,0.0015542]
[1722367512636,2.18646255,65912.0,65910.0,0.009383]
[1722367512637,2.675275,65911.0,65910.0,0.009383]
[1722367512870,3.15665055,65911.0,65910.0,0.009383]
[1722367513294,2.70257851,65911.0,65910.0,0.009383]
[1722367513503,2.65316363,65911.0,65910.0,0.009383]
[1722367513716,2.65324004,65911.0,65910.0,0.009383]
[1722367514126,2.71282683,65911.0,65910.0,0.009383]
[1722367514339,2.70282683,65911.0,65910.0,0.009383]
[1722367514993,2.71282683,65911.0,65910.0,0.009383]
[1722367515202,3.03026583,65911.0,65910.0,0.009383]
[1722367515379,3.01626583,65911.0,65910.0,0.009383]
[1722367515623,3.00777456,65911.0,65910.0,0.009383]
[1722367515827,2.71833556,65911.0,65910.0,0.009383]
[1722367516027,2.70433556,65911.0,65910.0,0.009383]
[1722367516211,2.99777456,65911.0,65910.0,0.009383]
[1722367516452,3.02177456,65911.0,65910.0,0.009383]
[1722367516666,2.97218777,65911.0,65910.0,0.009383]
[1722367516868,2.97638569,65911.0,65910.0,0.009383]
[1722367517080,3.1411758,65911.0,65910.0,0.009383]
[1722367517312,3.49627476,65911.0,65910.0,0.009383]
[1722367517533,3.54228864,65911.0,65910.0,0.009383]
[1722367517740,3.52828864,65911.0,65910.0,0.009383]
[1722367518181,1.67909,65904.0,65903.0,0.009383]
[1722367518397,2.45692377,65904.0,65903.0,0.009383]
[1722367518613,2.62951801,65904.0,65903.0,0.009383]
[1722367518834,2.72483463,65904.0,65903.0,0.009383]
[1722367519957,1.42823,65889.0,65888.0,0.009394]
[1722367520176,2.87869378,65889.0,65888.0,0.009394]
[1722367520389,2.57515378,65889.0,65888.0,0.009394]
[1722367520597,2.47983716,65889.0,65888.0,0.009394]
[1722367520816,2.49407064,65889.0,65888.0,0.009394]
[1722367521249,2.79761064,65889.0,65888.0,0.009394]
[1722367521476,2.87991064,65889.0,65888.0,0.009394]
[1722367522118,2.89191064,65889.0,65888.0,0.009394]
[1722367523794,3.00191064,65889.0,65888.0,0.009394]
[1722367524020,0.303637,65868.0,65867.0,0.0015542]
[1722367524247,2.05312548,65868.0,65867.0,0.0015542]
[1722367524468,2.35676248,65868.0,65867.0,0.0015542]
[1722367524678,0.759185,65860.0,65859.0,0.00867286]
[1722367524886,0.759185,65860.0,65853.0,0.009394]
[1722367524887,0.151851,65854.0,65853.0,0.009394]
[1722367525094,0.01423348,65854.0,65853.0,0.009394]
[1722367525330,0.455553,65854.0,65853.0,0.009394]
[1722367525744,0.4697414,65854.0,65853.0,0.070232]
[1722367525965,1.431647,65856.0,65853.0,0.070232]
[1722367526193,0.151851,65854.0,65853.0,0.070232]
[1722367526412,0.460553,65854.0,65853.0,0.070232]
[1722367527097,0.764255,65854.0,65853.0,0.070232]
[1722367527303,0.460553,65854.0,65853.0,0.070232]
[1722367527511,0.005,65854.0,65853.0,0.070232]
[1722367527926,0.156851,65854.0,65853.0,0.070232]
[1722367528139,0.161851,65854.0,65853.0,0.070232]
[1722367528561,0.465553,65854.0,65853.0,0.070232]
[1722367528772,0.769255,65854.0,65853.0,0.070232]
[1722367528974,0.465553,65854.0,65853.0,0.070232]
[1722367529406,0.525653,65854.0,65853.0,0.070232]
[1722367529623,1.133057,65854.0,65853.0,0.009394]
[1722367530052,1.21257443,65854.0,65853.0,0.009394]
[1722367530266,1.19840416,65854.0,65853.0,0.009394]
[1722367530525,1.21257429,65854.0,65853.0,0.009394]
[1722367530736,2.49237429,65854.0,65853.0,0.009394]
[1722367531370,2.402857,65854.0,65853.0,0.009394]
[1722367531583,2.039055,65854.0,65853.0,0.009394]
[1722367531830,1.28344487,65854.0,65853.0,0.009394]
[1722367532037,1.740353,65854.0,65853.0,0.009394]
[1722367532242,2.347757,65854.0,65853.0,0.009394]
[1722367532459,2.342757,65854.0,65853.0,0.009394]
[1722367532876,2.354757,65854.0,65853.0,0.009394]
[1722367533721,2.342757,65854.0,65853.0,0.009394]
[1722367533922,2.354757,65854.0,65853.0,0.009394]
[1722367535366,2.342757,65854.0,65853.0,0.009394]
[1722367535541,2.356757,65854.0,65853.0,0.009394]
[1722367535951,2.342757,65854.0,65853.0,0.009394]
[1722367536152,2.356757,65854.0,65853.0,0.009394]
[1722367536534,2.342757,65854.0,65853.0,0.009394]
[1722367536758,2.356757,65854.0,65853.0,0.009394]
[1722367536979,2.053055,65854.0,65853.0,0.009394]
[1722367537143,2.039055,65854.0,65853.0,0.009394]
[1722367538835,1.749353,65854.0,65853.0,0.009394]
[1722367539101,1.2798,65854.0,65853.0,0.141794]
[1722367539316,1.2928,65854.0,65853.0,0.74798604]
[1722367539520,1.2928,65854.0,65853.0,0.77098604]
[1722367539677,1.2798,65854.0,65853.0,0.77098604]
[1722367539902,1.2928,65854.0,65853.0,0.46728004]
[1722367540060,1.2928,65854.0,65853.0,0.77098604]
[1722367540262,1.2798,65854.0,65853.0,1.07469204]
[1722367540529,1.2858,65854.0,65853.0,1.07469204]
[1722367541276,1.2858,65854.0,65853.0,0.77098604]
[1722367541914,1.2858,65854.0,65853.0,1.07469204]
[1722367542335,1.2798,65854.0,65853.0,1.07469204]
[1722367542548,0.151835,65861.0,65856.0,0.151844]
[1722367542747,0.151836,65861.0,65857.0,0.1533972]
[1722367543382,0.151836,65861.0,65857.0,0.151843]
[1722367543668,0.151836,65861.0,65856.0,0.15063304]
[1722367543669,0.30367,65861.0,65856.0,0.15063304]
[1722367543877,0.151851,65854.0,65853.0,0.114394]
[1722367544076,0.22719816,65854.0,65853.0,0.26502704]
[1722367544276,0.07534716,65854.0,65853.0,0.26502704]
[1722367544496,0.07534716,65854.0,65853.0,0.18302704]
[1722367544935,0.151846,65856.0,65854.0,0.00089258]
[1722367545099,0.151844,65857.0,65854.0,0.17363304]
[1722367545302,0.151842,65858.0,65855.0,0.00135565]
[1722367545501,0.171835,65861.0,65855.0,0.00135565]
[1722367545715,0.151837,65860.0,65856.0,0.151845]
[1722367545935,0.01405663,65860.0,65856.0,0.0015542]
[1722367546303,0.303642,65867.0,65863.0,0.0778]
[1722367546479,0.151823,65866.0,65864.0,0.0015542]
[1722367546688,0.303642,65867.0,65864.0,0.0015542]
[1722367546689,1.29383477,65865.0,65864.0,0.0015542]
[1722367547564,1.431625,65865.0,65863.0,0.0778]
[1722367547769,0.07534716,65864.0,65863.0,0.0778]
[1722367548021,0.24121013,65864.0,65863.0,0.0778]
[1722367548259,0.455511,65860.0,65859.0,0.0015542]
[1722367548465,0.16587197,65860.0,65859.0,0.15063304]
[1722367548724,0.16587197,65860.0,65859.0,0.17363304]
[1722367548932,0.759197,65859.0,65858.0,0.0015542]
[1722367549156,0.759242,65855.0,65854.0,0.0015542]
[1722367549619,0.77327601,65855.0,65854.0,0.0015542]
[1722367549824,0.455553,65854.0,65853.0,0.009394]
[1722367550045,0.54493417,65854.0,65853.0,0.009394]
[1722367550465,0.16588501,65854.0,65853.0,0.009394]
[1722367550676,0.46958701,65854.0,65853.0,0.009394]
[1722367552466,0.004,65854.0,65853.0,0.009394]
[1722367552685,0.155851,65854.0,65853.0,0.009394]
[1722367552896,0.4736219,65854.0,65853.0,0.009394]
[1722367553984,0.7773239,65854.0,65853.0,0.009394]
[1722367554405,1.0810259,65854.0,65853.0,0.009394]
[1722367554619,2.3608259,65854.0,65853.0,0.009394]
[1722367554831,2.39205147,65854.0,65853.0,0.009394]
[1722367555044,2.40776759,65854.0,65853.0,0.009394]
[1722367555682,2.38196311,65854.0,65853.0,0.009394]
[1722367555905,2.36789366,65854.0,65853.0,0.009394]
[1722367556111,2.38068261,65854.0,65853.0,0.009394]
[1722367556319,2.47859671,65854.0,65853.0,0.009394]
[1722367556551,2.78229871,65854.0,65853.0,0.009394]
[1722367556760,2.73715808,65854.0,65853.0,0.009394]
[1722367556978,2.78229338,65854.0,65853.0,0.009394]
[1722367557187,2.79129338,65854.0,65853.0,0.009394]
[1722367557693,2.47187728,65854.0,65853.0,0.009394]
[1722367558753,2.38967728,65854.0,65853.0,0.009394]
[1722367559183,2.34946157,65854.0,65853.0,0.009394]
[1722367559389,2.3757819,65854.0,65853.0,0.010394]
[1722367559598,2.38972674,65854.0,65853.0,0.010394]
[1722367560073,2.40543698,65854.0,65853.0,0.010394]
[1722367560696,2.45326614,65854.0,65853.0,0.010394]
[1722367560905,2.40543698,65854.0,65853.0,0.010394]
[1722367561336,2.36025222,65854.0,65853.0,0.010394]
[1722367561767,2.3915686,65854.0,65853.0,0.010394]
[1722367561986,2.05486681,65854.0,65853.0,0.010394]
[1722367562207,2.35856881,65854.0,65853.0,0.010394]
[1722367562857,2.69362074,65854.0,65853.0,0.010394]
[1722367563062,2.70933306,65854.0,65853.0,0.010394]
[1722367564557,2.6639563,65854.0,65853.0,0.010394]
[1722367564996,3.01307559,65854.0,65853.0,0.010394]
[1722367565229,2.82053547,65854.0,65853.0,0.010394]
[1722367565438,2.98116851,65854.0,65853.0,0.010394]
[1722367565653,2.98116851,65854.0,65844.0,0.009394]
[1722367565654,1.269406,65852.0,65844.0,0.009394]
[1722367565865,1.50569016,65845.0,65844.0,0.009394]
[1722367566067,1.61488165,65845.0,65844.0,0.009394]
[1722367566296,2.06925769,65845.0,65844.0,0.009394]
[1722367566481,2.16205769,65845.0,65844.0,0.009394]
[1722367567332,0.10919149,65845.0,65844.0,0.16002704]
[1722367567594,0.165871,65845.0,65844.0,0.16002704]
[1722367567811,0.773357,65845.0,65844.0,0.009394]
[1722367568230,0.78747183,65845.0,65844.0,0.009394]
[1722367568667,0.80155553,65845.0,65844.0,0.032394]
[1722367569514,0.48381253,65845.0,65844.0,0.032394]
[1722367569719,0.49281253,65845.0,65844.0,0.032394]
[1722367570160,0.48381253,65845.0,65844.0,0.032394]
[1722367570361,0.78955553,65845.0,65844.0,0.032394]
[1722367570599,0.78755553,65845.0,65844.0,0.032394]
[1722367570857,0.78755553,65845.0,65844.0,0.009394]
[1722367571099,1.07921483,65845.0,65844.0,0.009394]
[1722367571352,1.09132519,65845.0,65844.0,0.009394]
[1722367571587,1.10705303,65845.0,65844.0,0.009394]
[1722367571806,1.48763027,65845.0,65844.0,0.009394]
[1722367572465,1.47351544,65845.0,65844.0,0.009394]
[1722367572713,1.47851544,65845.0,65844.0,0.009394]
[1722367572935,1.53411544,65845.0,65844.0,0.009394]
[1722367573162,1.69474848,65845.0,65844.0,0.009394]
[1722367573377,2.13249148,65845.0,65844.0,0.009394]
[1722367573608,1.18377244,65845.0,65844.0,0.009394]
[1722367573835,1.74814848,65845.0,65844.0,0.009394]
[1722367574055,1.79464848,65845.0,65844.0,0.009394]
[1722367574295,1.74918206,65845.0,65844.0,0.009394]
[1722367574508,1.7986945,65845.0,65844.0,0.009394]
[1722367574715,1.8186945,65845.0,65844.0,0.009394]
[1722367574934,2.0589945,65845.0,65844.0,0.009394]
[1722367575141,2.0589945,65845.0,65822.0,0.009405]
[1722367575142,1.283057,65823.0,65822.0,0.009405]
[1722367575356,2.16430066,65823.0,65822.0,0.009405]
[1722367576245,2.35440066,65823.0,65822.0,0.009405]
[1722367576691,2.36840066,65823.0,65822.0,0.009405]
[1722367576904,2.34440066,65823.0,65822.0,0.009405]
[1722367577326,2.66266096,65823.0,65822.0,0.009405]
[1722367577532,2.34481471,65823.0,65822.0,0.009405]
[1722367577759,2.64865971,65823.0,65822.0,0.009405]
[1722367577971,2.33481471,65823.0,65822.0,0.009405]
[1722367578188,1.94511471,65823.0,65822.0,0.009405]
[1722367578402,0.01410452,65823.0,65822.0,0.089205]
[1722367578614,0.01410452,65826.0,65822.0,0.089205]
[1722367578831,0.303814,65830.0,65822.0,0.089205]
[1722367579047,0.01419759,65829.0,65822.0,0.089205]
[1722367579262,0.01419759,65829.0,65823.0,0.0015542]
[1722367579263,0.303827,65827.0,65823.0,0.0015542]
[1722367579476,0.303787,65836.0,65823.0,0.0015542]
[1722367579691,0.16609087,65835.0,65827.0,0.303825]
[1722367579913,0.01412428,65834.0,65831.0,0.151902]
[1722367580133,0.15189,65837.0,65833.0,0.151899]
[1722367580359,0.01412251,65836.0,65834.0,0.0015542]
[1722367580569,1.421294,65838.0,65834.0,0.0015542]
[1722367580777,0.01412233,65836.0,65834.0,0.0015542]
[1722367580991,0.16601233,65837.0,65834.0,0.0015542]
[1722367581230,0.01412233,65836.0,65835.0,0.303789]
[1722367581469,0.01406969,65837.0,65836.0,0.60757]
[1722367581667,1.269406,65844.0,65840.0,0.151882]
[1722367581921,0.01406793,65843.0,65841.0,0.0015542]
[1722367582129,0.01406793,65843.0,65841.0,0.303762]
[1722367582372,0.01406793,65843.0,65842.0,0.30406524]
[1722367582495,1.269406,65844.0,65843.0,0.151876]
[1722367582734,1.269406,65844.0,65843.0,0.60781524]
[1722367583019,1.269406,65844.0,65843.0,0.17518724]
[1722367583263,1.269406,65844.0,65843.0,0.63081524]
[1722367583473,1.269406,65844.0,65843.0,0.62926104]
[1722367583870,1.270406,65844.0,65843.0,0.63081524]
[1722367585396,1.270406,65844.0,65843.0,0.38790724]
[1722367585592,1.270406,65844.0,65843.0,0.69165924]
[1722367586415,0.001,65844.0,65843.0,1.45886324]
[1722367586703,0.001,65844.0,65843.0,1.45730904]
[1722367586881,0.001,65844.0,65843.0,1.53820904]
[1722367587089,0.001,65844.0,65843.0,1.63820904]
[1722367587705,1.269406,65856.0,65855.0,0.151848]
[1722367587924,0.01398776,65856.0,65854.0,0.0015542]
[1722367588150,0.01398776,65856.0,65854.0,0.1534042]
[1722367588357,0.01398776,65856.0,65855.0,0.151848]
[1722367588974,0.01398776,65856.0,65854.0,0.0015542]
[1722367589397,0.01398776,65856.0,65854.0,0.1534042]
[1722367589798,0.759242,65855.0,65854.0,0.0015542]
[1722367590041,0.83552976,65855.0,65854.0,0.0015542]
[1722367590270,0.83552976,65855.0,65845.0,0.0015542]
[1722367590271,0.455608,65846.0,65845.0,0.0015542]
[1722367590477,0.759347,65846.0,65845.0,0.0015542]
[1722367590717,0.759347,65846.0,65829.0,0.363512]
[1722367590718,0.07534716,65848.0,65833.0,0.0015542]
[1722367590920,0.821692,65842.0,65841.0,0.060849]
[1722367591129,0.151897,65834.0,65833.0,0.0015542]
[1722367591334,0.01399158,65834.0,65831.0,0.0015542]
[1722367591540,0.01399158,65835.0,65831.0,0.0015542]
[1722367591762,1.269406,65841.0,65831.0,0.0015542]
[1722367591763,0.01388211,65834.0,65833.0,0.151898]
[1722367591972,1.269406,65841.0,65835.0,0.151894]
[1722367592177,0.08929688,65840.0,65836.0,0.15218724]
[1722367592387,0.08929688,65840.0,65836.0,0.0015542]
[1722367592388,0.01394972,65839.0,65836.0,0.0015542]
[1722367592801,0.16583572,65839.0,65836.0,0.0015542]
[1722367593013,0.01394972,65838.0,65835.0,0.1764482]
[1722367593214,0.151886,65839.0,65835.0,0.1764482]
[1722367593424,0.151886,65839.0,65835.0,0.0245542]
[1722367593599,0.01401218,65837.0,65835.0,0.0245542]
[1722367594009,0.01401218,65836.0,65835.0,0.0245542]
[1722367594807,0.16590418,65836.0,65835.0,0.0245542]
[1722367595012,0.46968918,65836.0,65835.0,0.0015542]
[1722367595217,0.820785,65834.0,65833.0,0.0015542]
[1722367595431,0.83479718,65834.0,65833.0,0.0015542]
[1722367595659,2.40799718,65834.0,65833.0,0.0015542]
[1722367595885,0.759555,65828.0,65827.0,0.060862]
[1722367596107,0.759555,65828.0,65822.0,0.009405]
[1722367596108,0.151922,65823.0,65822.0,0.009405]
[1722367596318,1.13880416,65823.0,65822.0,0.009405]
[1722367596555,1.15281634,65823.0,65822.0,0.070267]
[1722367596797,0.46982411,65823.0,65822.0,0.070267]
[1722367597038,0.77366911,65823.0,65822.0,0.070267]
[1722367597272,0.77366911,65823.0,65822.0,0.009405]
[1722367597273,0.83966911,65823.0,65822.0,0.009405]
[1722367597489,1.14351411,65823.0,65822.0,0.009405]
[1722367597691,1.15151411,65823.0,65822.0,0.009405]
[1722367597896,1.14351411,65823.0,65822.0,0.009405]
[1722367598556,2.49492011,65823.0,65822.0,0.009405]
[1722367598766,2.8144766,65823.0,65822.0,0.009405]
[1722367598970,2.84585969,65823.0,65822.0,0.009405]
[1722367599413,2.54201469,65823.0,65822.0,0.009405]
[1722367599645,2.51224609,65823.0,65822.0,0.009405]
[1722367599858,2.51824609,65823.0,65822.0,0.009405]
[1722367600061,2.51224609,65823.0,65822.0,0.009405]
[1722367600272,2.5576348,65823.0,65822.0,0.009405]
[1722367600692,2.5942531,65823.0,65822.0,0.009405]
[1722367600896,2.8980981,65823.0,65822.0,0.009405]
[1722367601101,2.89809336,65823.0,65822.0,0.009405]
[1722367601333,3.03134331,65823.0,65822.0,0.009405]
[1722367601549,3.03134331,65823.0,65800.0,0.0109592]
[1722367601550,1.12843,65806.0,65800.0,0.0109592]
[1722367601767,2.40242626,65806.0,65802.0,0.060878]
[1722367602638,2.388431,65806.0,65802.0,0.060878]
[1722367603730,2.397431,65806.0,65802.0,0.060878]
[1722367606359,2.093508,65806.0,65802.0,0.060878]
[1722367608821,2.093508,65806.0,65800.0,0.009405]
[1722367609024,2.397431,65806.0,65800.0,0.009405]
[1722367609374,2.54806404,65806.0,65800.0,0.009405]
[1722367609981,2.53906404,65806.0,65800.0,0.009405]
[1722367610191,2.85698704,65806.0,65800.0,0.009405]
[1722367610387,1.224611,65801.0,65800.0,0.009405]
[1722367610591,2.5485832,65801.0,65800.0,0.009405]
[1722367610795,2.5285832,65801.0,65800.0,0.009405]
[1722367610992,2.5485832,65801.0,65800.0,0.009405]
[1722367611197,1.241786,65791.0,65790.0,0.009405]
[1722367611398,3.38128304,65791.0,65790.0,0.009405]
[1722367611596,3.70527504,65791.0,65790.0,0.009405]
[1722367612466,1.698927,65788.0,65786.0,0.000913]
[1722367612678,2.0249072,65788.0,65786.0,0.000913]
[1722367612889,2.3289132,65788.0,65786.0,0.000913]
[1722367613350,1.702449,65787.0,65786.0,0.000913]
[1722367613517,2.25709304,65787.0,65786.0,0.000913]
[1722367613770,1.67385,65780.0,65777.0,0.0244592]
[1722367613972,2.2838732,65780.0,65777.0,0.0244592]
[1722367614319,2.3038732,65780.0,65777.0,0.0244592]
[1722367614499,2.2838732,65780.0,65777.0,0.0244592]
[1722367614729,2.6079162,65780.0,65777.0,0.0244592]
[1722367615178,2.6219162,65780.0,65777.0,0.0244592]
[1722367615796,1.558338,65778.0,65777.0,0.01115488]
[1722367616010,0.342131,65776.0,65775.0,8.8e-07]
[1722367616222,0.342131,65776.0,65768.0,0.009416]
[1722367616223,1.398029,65769.0,65768.0,0.009416]
[1722367616428,0.152088,65751.0,65750.0,0.011155]
[1722367616637,0.152088,65751.0,65740.0,0.1536672]
[1722367616638,0.1521,65746.0,65740.0,0.1536672]
[1722367616842,1.22237,65751.0,65740.0,0.0015542]
[1722367617051,1.22237,65751.0,65739.0,0.009416]
[1722367617254,1.22237,65751.0,65744.0,0.152105]
[1722367617468,1.37300304,65751.0,65741.0,0.060941]
[1722367617666,0.152109,65742.0,65741.0,0.060941]
[1722367618099,0.152114,65740.0,65739.0,0.009416]
[1722367618285,0.456342,65740.0,65739.0,0.009416]
[1722367618520,1.22237,65742.0,65739.0,0.009416]
[1722367619744,1.37448,65742.0,65739.0,0.009416]
[1722367619946,0.304224,65741.0,65739.0,0.009416]
[1722367620162,0.9865502,65740.0,65739.0,0.009416]
[1722367620369,1.2907782,65740.0,65739.0,0.009416]
[1722367620588,0.9865502,65740.0,65739.0,0.009416]
[1722367621266,1.2907782,65740.0,65739.0,0.009416]
[1722367621475,2.5131482,65740.0,65739.0,0.009416]
[1722367621677,2.73924252,65740.0,65739.0,0.009416]
[1722367621884,2.9226482,65740.0,65739.0,0.009416]
[1722367622304,2.9366482,65740.0,65739.0,0.009416]
[1722367622534,2.38687304,65740.0,65739.0,0.009416]
[1722367622946,2.69110104,65740.0,65739.0,0.009416]
[1722367623364,2.86130104,65740.0,65739.0,0.009416]
[1722367623577,3.32222336,65740.0,65739.0,0.009416]
[1722367623787,3.93067936,65740.0,65739.0,0.009416]
[1722367624001,3.65436402,65740.0,65739.0,0.009416]
[1722367624213,3.1794417,65740.0,65739.0,0.009416]
[1722367624429,3.15152904,65740.0,65739.0,0.009416]
[1722367624632,3.18552904,65740.0,65739.0,0.009416]
[1722367625056,3.17152904,65740.0,65739.0,0.009416]
[1722367625256,3.18552904,65740.0,65739.0,0.009416]
[1722367625471,3.32222336,65740.0,65739.0,0.009416]
[1722367626156,3.32222336,65740.0,65734.0,0.009416]
[1722367626157,1.559329,65735.0,65734.0,0.009416]
[1722367626384,3.5272792,65735.0,65734.0,0.009416]
[1722367626593,3.8315302,65735.0,65734.0,0.009416]
[1722367626799,3.97462849,65735.0,65734.0,0.009416]
[1722367627437,4.27887949,65735.0,65734.0,0.009416]
[1722367627642,4.29274135,65735.0,65734.0,1e-06]
[1722367627848,4.30674135,65735.0,65734.0,1e-06]
[1722367628737,1.9949398,65726.0,65725.0,0.00111751]
[1722367628972,1.93155104,65726.0,65725.0,0.00111751]
[1722367629432,1.58701716,65735.0,65725.0,0.00111751]
[1722367629433,0.304277,65730.0,65725.0,0.00111751]
[1722367629642,0.304263,65733.0,65729.0,0.0002712]
[1722367629883,0.152133,65732.0,65729.0,0.0002712]
[1722367630298,0.014,65735.0,65731.0,0.0002712]
[1722367630507,0.014,65735.0,65734.0,0.0002712]
[1722367630933,0.456376,65735.0,65734.0,0.0002712]
[1722367631146,0.152121,65737.0,65736.0,0.0002712]
[1722367631358,0.01,65748.0,65728.0,0.0827]
[1722367631359,0.152112,65741.0,65740.0,0.0002712]
[1722367631572,0.152105,65744.0,65743.0,0.0002712]
[1722367631789,0.760525,65744.0,65743.0,0.0002712]
[1722367632004,0.15063304,65748.0,65736.0,0.0002712]
[1722367632214,0.07534716,65749.0,65736.0,0.0002712]
[1722367632215,0.456363,65737.0,65736.0,0.0002712]
[1722367632621,0.456328,65742.0,65741.0,0.0002712]
[1722367632857,0.456336,65741.0,65740.0,0.0002712]
[1722367633064,0.456336,65741.0,65729.0,0.0627]
[1722367633065,0.456376,65735.0,65734.0,0.0002712]
[1722367633273,0.760627,65735.0,65734.0,0.0002712]
[1722367633485,0.456376,65735.0,65734.0,0.0002712]
[1722367633741,0.760675,65731.0,65730.0,0.0015542]
[1722367633948,1.14029216,65731.0,65730.0,0.0015542]
[1722367634167,1.14029216,65731.0,65724.0,0.076316]
[1722367634168,0.456412,65730.0,65729.0,0.0002712]
[1722367634410,0.1,65746.0,65736.0,0.0002712]
[1722367634629,0.07534716,65749.0,65724.0,0.014516]
[1722367634630,0.45637,65736.0,65735.0,0.0002712]
[1722367634849,0.152109,65742.0,65741.0,0.0002712]
[1722367635056,0.456328,65742.0,65741.0,0.0002712]
[1722367635273,0.456328,65742.0,65726.0,0.15367565]
[1722367635274,0.152116,65739.0,65738.0,0.0002712]
[1722367635486,0.456363,65737.0,65736.0,0.0002712]
[1722367635697,0.15063304,65741.0,65732.0,0.0002712]
[1722367635906,0.83599916,65733.0,65732.0,0.0002712]
[1722367636559,0.760652,65733.0,65732.0,0.0002712]
[1722367637406,0.304233,65739.0,65738.0,0.0002712]
[1722367637638,0.1,65748.0,65744.0,0.0002712]
[1722367637886,0.17534716,65749.0,65744.0,0.0002712]
[1722367637887,0.456307,65745.0,65744.0,0.0002712]
[1722367638088,0.456315,65744.0,65743.0,0.0002712]
[1722367638291,0.152105,65744.0,65743.0,0.0002712]
[1722367638502,1.736115,65744.0,65743.0,0.0002712]
[1722367638943,2.040325,65744.0,65743.0,0.0002712]
[1722367639153,1.2798,65744.0,65743.0,0.0002712]
[1722367639373,1.2798,65744.0,65743.0,0.5204922]
[1722367639581,1.2798,65744.0,65743.0,0.8477062]
[1722367639792,1.2798,65744.0,65743.0,0.6208922]
[1722367640195,1.2798,65744.0,65743.0,0.9251062]
[1722367640445,1.2798,65758.0,65757.0,0.0002712]
[1722367640660,1.2798,65758.0,65748.0,0.304187]
[1722367640661,0.304137,65760.0,65759.0,0.0002712]
[1722367640896,0.456204,65760.0,65759.0,0.0002712]
[1722367641104,0.456204,65760.0,65748.0,0.15063304]
[1722367641105,0.152079,65755.0,65754.0,0.0002712]
[1722367641335,1.2798,65765.0,65756.0,0.0002712]
[1722367641336,0.760375,65757.0,65756.0,0.0002712]
[1722367641547,0.456246,65754.0,65753.0,0.0002712]
[1722367641782,0.152088,65751.0,65750.0,0.0002712]
[1722367642688,0.07534716,65752.0,65748.0,0.0002712]
[1722367642922,0.07534716,65752.0,65744.0,0.0002712]